[Event "2nd Bieszczady Chess-ch B 2022"]
[Site "Bystre"]
[Date "2022.07.21"]
[Round "5.11"]
[White "Strojek, Kazimierz"]
[Black "Idzior, Izabela"]
[Result "1-0"]
[ECO "C18"]
[WhiteElo "1668"]
[BlackElo "1260"]
[Annotator "NA RC COMBH"]
[PlyCount "147"]
[EventDate "2022.07.17"]
[EventCountry "POL"]
[SourceTitle "playchess.com"]
[Source "ChessBase"]
[SourceQuality "1"]
[TimeControl "5400+30"]

1. e4 {[%emt 0:00:11]} e6 {[%emt 0:00:12]} 2. d4 {[%emt 0:00:38]} d5 {[%emt 0:00:06]} 3. Nc3 {[%emt 0:00:29]} Bb4 {[%emt 0:00:07]} 4. e5 {[%emt 0:00:10]} c5 {[%emt 0:00:06]} 5. a3 {[%emt 0:00:24]} Bxc3+ {[%emt 0:00:15]} 6. bxc3 {[%emt 0:00:04]} Ne7 {[%emt 0:01:23]} 7. Bg5 {[%emt 0:01:26]} Nbc6 {[%emt 0:00:40]} 8. Nf3 {[%emt 0:04:19]} Qa5 {[%emt 0:03:57]} 9. Bd2 {[%emt 0:02:31]} Qa4 {[%emt 0:04:22]} 10. Be3 {[%emt 0:01:40]} Nf5 {[%emt 0:00:48]} 11. Be2 {[%emt 0:04:31]} Nxe3 {[%emt 0:04:42]} 12. fxe3 {[%emt 0:00:12]} Ne7 {[%emt 0:07:41]} 13. O-O {[%emt 0:00:58]} b6 {[%emt 0:04:46]} 14. Ng5 {[%emt 0:00:38]} Nf5 {[%emt 0:02:39]} 15. Qd2 {[%emt 0:00:28]} h6 {[%emt 0:05:30]} 16. Nf3 {[%emt 0:04:30]} O-O {[%emt 0:05:43]} 17. Bd3 {[%emt 0:02:28]} Ba6 {[%emt 0:06:46]} 18. g4 {[%emt 0:02:41]} Ne7 {[%emt 0:01:16]} 19. g5 {[%emt 0:01:48]} Bxd3 {[%emt 0:03:00]} 20. cxd3 {[%emt 0:00:50]} Kh7 {[%emt 0:03:37]} 21. e4 {[%emt 0:01:10]} Qc6 {[%emt 0:02:05]} 22. Qe3 {[%emt 0:00:26]} f5 {[%emt 0:02:22]} 23. exf6 {[%emt 0:00:53]} gxf6 {[%emt 0:00:14]} 24. gxf6 {[%emt 0:00:19]} Rxf6 {[%emt 0:00:27]} 25. Ne5 {[%emt 0:00:42]} Rg8+ {[%emt 0:03:34]} 26. Kh1 {[%emt 0:00:05]} Rxf1+ {[%emt 0:00:40]} 27. Rxf1 {[%emt 0:00:01]} Qe8 {[%emt 0:01:57]} 28. Rf7+ {[%emt 0:02:46]} Rg7 {[%emt 0:00:08]} 29. Rf6 {[%emt 0:11:44]} Ng8 {[%emt 0:08:09]} 30. Rf1 {[%emt 0:01:38]} Qh5 {[%emt 0:01:54]} 31. exd5 {[%emt 0:00:46]} exd5 {[%emt 0:00:26]} 32. Qf3 {[%emt 0:00:03]} Qxf3+ {[%emt 0:01:15]} 33. Rxf3 {[%emt 0:00:01]} cxd4 {[%emt 0:02:09]} 34. cxd4 {[%emt 0:00:02]} Rc7 {[%emt 0:00:45]} 35. Kg2 {[%emt 0:00:28]} a5 {[%emt 0:02:37]} 36. Rf8 {[%emt 0:05:06]} Rb7 {[%emt 0:04:51]} 37. a4 {[%emt 0:02:28]} Ne7 {[%emt 0:03:11]} 38. Rf7+ {[%emt 0:01:50]} Kg8 {[%emt 0:00:21]} 39. Kf3 {[%emt 0:00:32]} b5 {[%emt 0:01:19]} 40. axb5 {[%emt 0:00:09]} a4 {[%emt 0:00:30]} 41. Rf6 {[%emt 0:00:01]} Rxb5 {[%emt 0:01:36]} 42. Ra6 {[%emt 0:02:49]} Rb4 {[%emt 0:05:03]} 43. Ra8+ {[%emt 0:00:22]} Kg7 {[%emt 0:00:39]} 44. Ra7 {[%emt 0:00:02]} Rxd4 {[%emt 0:02:16]} 45. Ke3 {[%emt 0:02:43]} Rh4 {[%emt 0:02:46]} 46. Nf3 {[%emt 0:00:26]} d4+ {[%emt 0:03:21]} 47. Ke2 {[%emt 0:00:02]} Rg4 {[%emt 0:00:39]} 48. Rxe7+ {[%emt 0:00:18]} Kf6 {[%emt 0:00:20]} 49. Ra7 {[%emt 0:00:37]} Rg2+ {[%emt 0:00:27]} 50. Kf1 {[%emt 0:00:50]} Ra2 {[%emt 0:00:11]} 51. Ra6+ {[%emt 0:02:28]} Kg7 {[%emt 0:01:24]} 52. h4 {[%emt 0:00:34]} a3 {[%emt 0:00:47]} 53. h5 {[%emt 0:01:09]} Ra1+ {[%emt 0:00:10]} 54. Ne1 {[%emt 0:01:23]} a2 {[%emt 0:00:44]} 55. Ke2 {[%emt 0:00:55]} Kf7 {[%emt 0:00:29]} 56. Nc2 {[%emt 0:01:12]} Rh1 {[%emt 0:00:11]} 57. Rxa2 {[%emt 0:00:36]} Rxh5 {[%emt 0:00:25]} 58. Ra4 {[%emt 0:00:40]} Ke6 {[%emt 0:00:59]} 59. Nxd4+ {[%emt 0:00:05]} Kf6 {[%emt 0:00:00]} 60. Nf3 {[%emt 0:00:00]} Rf5 {[%emt 0:00:50]} 61. Ra6+ {[%emt 0:00:00]} Kg7 {[%emt 0:00:07]} 62. d4 {[%emt 0:00:32]} Rd5 {[%emt 0:00:54]} 63. Ke3 {[%emt 0:00:01]} h5 {[%emt 0:00:12]} 64. Ke4 {[%emt 0:00:26]} Rd8 {[%emt 0:00:25]} 65. Nh4 {[%emt 0:00:07]} Re8+ {[%emt 0:00:27]} 66. Kf4 {[%emt 0:00:02]} Rd8 {[%emt 0:00:16]} 67. Nf5+ {[%emt 0:00:12]} Kf7 {[%emt 0:00:18]} 68. Rh6 {[%emt 0:00:22]} Rf8 {[%emt 0:00:47]} 69. Rxh5 {[%emt 0:00:08]} Ke6 {[%emt 0:00:42]} 70. Rh6+ {[%emt 0:00:09]} Kd5 {[%emt 0:00:39]} 71. Rd6+ {[%emt 0:00:44]} Kc4 {[%emt 0:00:05]} 72. Ke5 {[%emt 0:00:15]} Re8+ {[%emt 0:00:25]} 73. Re6 {[%emt 0:00:02]} Rd8 {[%emt 0:00:49]} 74. Rc6+ {[%emt 0:00:23]} 1-0

[Event "2nd Bieszczady Chess-ch B 2022"]
[Site "Bystre"]
[Date "2022.07.21"]
[Round "6.1"]
[White "Sola, Wojciech"]
[Black "Biesiadecki, Adam"]
[Result "0-1"]
[ECO "A28"]
[WhiteElo "1780"]
[BlackElo "1776"]
[Annotator "NA RC COMBH"]
[PlyCount "76"]
[EventDate "2022.07.17"]
[EventCountry "POL"]
[SourceTitle "playchess.com"]
[Source "ChessBase"]
[SourceQuality "1"]
[TimeControl "5400+30"]

1. c4 {[%emt 0:00:06]} Nf6 {[%emt 0:00:03]} 2. Nc3 {[%emt 0:00:12]} e5 {[%emt 0:00:07]} 3. Nf3 {[%emt 0:01:07]} Nc6 {[%emt 0:00:09]} 4. d4 {[%emt 0:02:33]} exd4 {[%emt 0:00:47]} 5. Nxd4 {[%emt 0:00:09]} Bb4 {[%emt 0:00:08]} 6. Nxc6 {[%emt 0:03:57]} bxc6 {[%emt 0:00:20]} 7. Qc2 {[%emt 0:00:37]} O-O {[%emt 0:01:50]} 8. Bg5 {[%emt 0:03:15]} d5 {[%emt 0:02:26]} 9. a3 {[%emt 0:00:53]} Be7 {[%emt 0:00:08]} 10. e3 {[%emt 0:03:15]} Re8 {[%emt 0:02:24]} 11. Rd1 {[%emt 0:07:39]} Be6 {[%emt 0:22:16]} 12. Bd3 {[%emt 0:18:46]} h6 {[%emt 0:00:46]} 13. Bh4 {[%emt 0:01:34]} Ng4 {[%emt 0:02:57]} 14. Bg3 {[%emt 0:14:20]} Bh4 {[%emt 0:05:21]} 15. Bh7+ {[%emt 0:09:50]} Kh8 {[%emt 0:00:17]} 16. Bf5 {[%emt 0:00:05]} Qf6 {[%emt 0:09:17]} 17. Bxg4 {[%emt 0:03:00]} Bxg4 {[%emt 0:01:06]} 18. Ne2 {[%emt 0:05:23]} Rad8 {[%emt 0:01:56]} 19. Bxh4 {[%emt 0:02:19]} Qxh4 {[%emt 0:01:29]} 20. cxd5 {[%emt 0:03:35]} cxd5 {[%emt 0:01:57]} 21. O-O {[%emt 0:01:25]} c5 {[%emt 0:12:07]} 22. f3 {[%emt 0:01:58]} Bc8 {[%emt 0:01:13]} 23. Qxc5 {[%emt 0:04:27]} Ba6 {[%emt 0:00:48]} 24. Rd2 {[%emt 0:00:43]} d4 {[%emt 0:02:59]} 25. e4 {[%emt 0:01:01]} Re6 {[%emt 0:03:48]} 26. Rfd1 {[%emt 0:01:38]} Rg6 {[%emt 0:04:59]} 27. Ng3 {[%emt 0:01:30]} d3 {[%emt 0:01:50]} 28. Nf5 {[%emt 0:02:27]} Qf4 {[%emt 0:04:17]} 29. Qe3 {[%emt 0:01:53]} Qc7 {[%emt 0:00:25]} 30. Qf2 {[%emt 0:01:25]} Rc6 {[%emt 0:03:00]} 31. Qg3 {[%emt 0:00:31]} Qb6+ {[%emt 0:02:25]} 32. Qf2 {[%emt 0:00:37]} Qc7 {[%emt 0:02:37]} 33. g3 {[%emt 0:00:10]} Rc1 {[%emt 0:00:44]} 34. Kg2 {[%emt 0:00:29]} Rc8 {[%emt 0:01:53]} 35. Ne3 {[%emt 0:01:31]} Qa5 {[%emt 0:00:40]} 36. Qe1 {[%emt 0:00:56]} Rxd1 {[%emt 0:02:19]} 37. Qxd1 {[%emt 0:01:21]} Qg5 {[%emt 0:00:31]} 38. Nd5 {[%emt 0:00:22]} Qxd2+ 0-1

[Event "2nd Bieszczady Chess-ch B 2022"]
[Site "Bystre"]
[Date "2022.07.21"]
[Round "6.2"]
[White "Tokarz, Izabela"]
[Black "Labedz, Dawid"]
[Result "1-0"]
[ECO "D47"]
[WhiteElo "1694"]
[BlackElo "1562"]
[Annotator "NA COMBH"]
[PlyCount "63"]
[EventDate "2022.07.17"]
[EventCountry "POL"]
[SourceTitle "playchess.com"]
[Source "ChessBase"]
[SourceQuality "1"]
[TimeControl "5400+30"]

1. d4 {[%emt 0:00:01]} d5 {[%emt 0:00:07]} 2. c4 {[%emt 0:00:04]} c6 {[%emt 0:00:02]} 3. Nf3 {[%emt 0:00:10]} Nf6 {[%emt 0:00:07]} 4. Nc3 {[%emt 0:00:06]} e6 {[%emt 0:00:16]} 5. e3 {[%emt 0:00:06]} Nbd7 {[%emt 0:00:25]} 6. Bd3 {[%emt 0:00:11]} dxc4 {[%emt 0:01:13]} 7. Bxc4 {[%emt 0:00:04]} b5 {[%emt 0:00:14]} 8. Bd3 {[%emt 0:00:08]} Bb7 {[%emt 0:02:22]} 9. O-O {[%emt 0:00:43]} Bd6 {[%emt 0:00:09]} 10. Qe2 {[%emt 0:02:20]} O-O {[%emt 0:02:47]} 11. Rd1 {[%emt 0:00:17]} Qc7 {[%emt 0:03:20]} 12. e4 {[%emt 0:04:25]} e5 {[%emt 0:01:10]} 13. d5 {[%emt 0:08:52]} a6 {[%emt 0:01:36]} 14. dxc6 {[%emt 0:00:22]} Bxc6 {[%emt 0:01:47]} 15. a3 {[%emt 0:02:57]} Nc5 {[%emt 0:01:54]} 16. Bc2 {[%emt 0:00:40]} Rfd8 {[%emt 0:03:16]} 17. Bg5 {[%emt 0:30:55]} Be7 {[%emt 0:03:30]} 18. Bh4 {[%emt 0:11:39]} Rd7 {[%emt 0:13:54]} 19. Bg3 {[%emt 0:00:57]} Bd6 {[%emt 0:01:13]} 20. Rac1 {[%emt 0:00:05]} Nh5 {[%emt 0:07:04]} 21. b4 {[%emt 0:07:01]} Nxg3 {[%emt 0:01:04]} 22. hxg3 {[%emt 0:00:10]} Ne6 {[%emt 0:01:26]} 23. Bb3 {[%emt 0:03:00]} Qd8 {[%emt 0:09:50]} 24. Qa2 {[%emt 0:05:00]} Qf6 {[%emt 0:02:08]} 25. Nd5 {[%emt 0:03:36]} Bxd5 {[%emt 0:00:18]} 26. Bxd5 {[%emt 0:01:23]} Raa7 {[%emt 0:04:00]} 27. Bxe6 {[%emt 0:05:20]} fxe6 {[%emt 0:02:05]} 28. Rc6 {[%emt 0:00:41]} Qe7 {[%emt 0:01:12]} 29. Ng5 {[%emt 0:01:24]} Qxg5 {[%emt 0:01:31]} 30. Qxe6+ {[%emt 0:00:31]} Kf8 {[%emt 0:00:02]} 31. Rc8+ {[%emt 0:00:40]} Rd8 {[%emt 0:00:07]} 32. Qxd6+ {[%emt 0:00:14]} 1-0

[Event "2nd Bieszczady Chess-ch B 2022"]
[Site "Bystre"]
[Date "2022.07.21"]
[Round "6.3"]
[White "Kucza, Arkadiusz"]
[Black "Kulig, Pawel"]
[Result "0-1"]
[ECO "A06"]
[WhiteElo "1500"]
[BlackElo "1720"]
[Annotator "NA RC COMBH"]
[PlyCount "116"]
[EventDate "2022.07.17"]
[EventCountry "POL"]
[SourceTitle "playchess.com"]
[Source "ChessBase"]
[SourceQuality "1"]
[TimeControl "5400+30"]

1. Nf3 {[%emt 0:00:02]} d5 {[%emt 0:03:54]} 2. g3 {[%emt 0:00:05]} Nc6 {[%emt 0:00:33]} 3. Bg2 {[%emt 0:00:03]} e5 {[%emt 0:00:09]} 4. d3 {[%emt 0:00:05]} Nf6 {[%emt 0:00:06]} 5. Nbd2 {[%emt 0:00:10]} Be7 {[%emt 0:00:39]} 6. O-O {[%emt 0:00:10]} O-O {[%emt 0:00:04]} 7. e4 {[%emt 0:00:16]} Re8 {[%emt 0:00:26]} 8. Qe2 {[%emt 0:01:13]} Bf8 {[%emt 0:01:24]} 9. c3 {[%emt 0:00:36]} dxe4 {[%emt 0:00:49]} 10. dxe4 {[%emt 0:00:21]} a5 {[%emt 0:00:10]} 11. Rd1 {[%emt 0:02:01]} Qe7 {[%emt 0:02:54]} 12. a4 {[%emt 0:03:46]} h6 {[%emt 0:02:10]} 13. Nf1 {[%emt 0:24:38]} Be6 {[%emt 0:01:52]} 14. Nh4 {[%emt 0:08:11]} Rad8 {[%emt 0:11:03]} 15. Ne3 {[%emt 0:02:41]} Rxd1+ {[%emt 0:02:02]} 16. Qxd1 {[%emt 0:00:32]} Rd8 {[%emt 0:00:39]} 17. Nd5 {[%emt 0:03:46]} Bxd5 {[%emt 0:07:21]} 18. exd5 {[%emt 0:00:14]} e4 {[%emt 0:00:43]} 19. c4 {[%emt 0:01:09]} Nb4 {[%emt 0:01:30]} 20. Qe2 {[%emt 0:06:49]} g5 {[%emt 0:13:25]} 21. Nf5 {[%emt 0:03:19]} Qe5 {[%emt 0:00:31]} 22. Ne3 {[%emt 0:00:16]} Nd3 {[%emt 0:00:33]} 23. Ng4 {[%emt 0:09:11]} Nxg4 {[%emt 0:04:17]} 24. Qxg4 {[%emt 0:00:07]} Nxc1 {[%emt 0:08:34]} 25. Rxc1 {[%emt 0:00:11]} f5 {[%emt 0:00:44]} 26. Qe2 {[%emt 0:00:47]} Bc5 {[%emt 0:00:45]} 27. Rc2 {[%emt 0:01:27]} Re8 {[%emt 0:02:41]} 28. Qh5 {[%emt 0:02:58]} Kg7 {[%emt 0:00:56]} 29. Qe2 {[%emt 0:02:06]} Re7 {[%emt 0:01:24]} 30. Bh3 {[%emt 0:02:37]} g4 {[%emt 0:01:03]} 31. Bg2 {[%emt 0:00:04]} h5 {[%emt 0:00:19]} 32. Rc3 {[%emt 0:00:43]} Bd4 {[%emt 0:01:42]} 33. Rb3 {[%emt 0:00:07]} b6 {[%emt 0:00:17]} 34. h3 {[%emt 0:00:15]} Kg8 {[%emt 0:04:12]} 35. Kf1 {[%emt 0:01:23]} f4 {[%emt 0:11:14]} 36. hxg4 {[%emt 0:03:25]} f3 {[%emt 0:03:38]} 37. Bxf3 {[%emt 0:00:07]} exf3 {[%emt 0:00:08]} 38. Qxe5 {[%emt 0:00:07]} Rxe5 {[%emt 0:00:48]} 39. Rxf3 {[%emt 0:00:53]} hxg4 {[%emt 0:00:25]} 40. Rf4 {[%emt 0:00:03]} Bxb2 {[%emt 0:00:12]} 41. Rxg4+ {[%emt 0:00:07]} Kf7 {[%emt 0:00:16]} 42. Rh4 {[%emt 0:00:40]} Rg5 {[%emt 0:01:30]} 43. Re4 {[%emt 0:00:44]} Re5 {[%emt 0:00:21]} 44. Rh4 {[%emt 0:00:09]} Re7 {[%emt 0:00:28]} 45. Rh6 {[%emt 0:00:24]} Bg7 {[%emt 0:00:35]} 46. Rc6 {[%emt 0:00:28]} Bd4 {[%emt 0:00:50]} 47. d6 {[%emt 0:00:46]} cxd6 {[%emt 0:00:20]} 48. Rxd6 {[%emt 0:00:06]} Bc5 {[%emt 0:00:12]} 49. Rd1 {[%emt 0:00:11]} Re4 {[%emt 0:00:11]} 50. Rc1 {[%emt 0:00:09]} Kf6 {[%emt 0:00:12]} 51. Rc3 {[%emt 0:01:38]} Ke5 {[%emt 0:00:48]} 52. f3 {[%emt 0:00:36]} Rd4 {[%emt 0:02:57]} 53. Ke2 {[%emt 0:00:35]} Rd7 {[%emt 0:00:42]} 54. Rc1 {[%emt 0:01:47]} Rg7 {[%emt 0:00:30]} 55. g4 {[%emt 0:00:44]} Kf4 {[%emt 0:00:13]} 56. Rd1 {[%emt 0:02:13]} Re7+ {[%emt 0:00:08]} 57. Kf1 {[%emt 0:00:07]} Kxf3 {[%emt 0:00:06]} 58. g5 {[%emt 0:00:06]} Rg7 {[%emt 0:00:10]} 0-1

[Event "2nd Bieszczady Chess-ch B 2022"]
[Site "Bystre"]
[Date "2022.07.21"]
[Round "6.4"]
[White "Gluch, Pawel"]
[Black "Tokarz, Gabriela"]
[Result "1-0"]
[ECO "B20"]
[WhiteElo "1663"]
[BlackElo "1412"]
[Annotator "NA COMBH"]
[PlyCount "63"]
[EventDate "2022.07.17"]
[EventCountry "POL"]
[SourceTitle "playchess.com"]
[Source "ChessBase"]
[SourceQuality "1"]
[TimeControl "5400+30"]

1. e4 {[%emt 0:00:04]} c5 {[%emt 0:00:06]} 2. Be2 {[%emt 0:00:06]} Nc6 {[%emt 0:00:19]} 3. f4 {[%emt 0:00:06]} e6 {[%emt 0:00:13]} 4. Nf3 {[%emt 0:00:11]} Nf6 {[%emt 0:00:13]} 5. d3 {[%emt 0:00:05]} d5 {[%emt 0:00:17]} 6. e5 {[%emt 0:00:42]} Nd7 {[%emt 0:00:11]} 7. c4 {[%emt 0:00:04]} d4 {[%emt 0:00:26]} 8. O-O {[%emt 0:00:58]} Be7 {[%emt 0:00:09]} 9. Nbd2 {[%emt 0:00:33]} O-O {[%emt 0:00:45]} 10. Ne4 {[%emt 0:01:38]} b6 {[%emt 0:02:15]} 11. Qe1 {[%emt 0:02:12]} Bb7 {[%emt 0:01:32]} 12. Qg3 {[%emt 0:00:53]} Qc7 {[%emt 0:04:13]} 13. Qh3 {[%emt 0:02:08]} Nd8 {[%emt 0:02:46]} 14. Qh5 {[%emt 0:01:46]} Bxe4 {[%emt 0:01:21]} 15. dxe4 {[%emt 0:00:05]} f6 {[%emt 0:00:42]} 16. Qh4 {[%emt 0:04:11]} Rf7 {[%emt 0:01:44]} 17. exf6 {[%emt 0:00:40]} Bxf6 {[%emt 0:03:50]} 18. Qh3 {[%emt 0:04:13]} e5 {[%emt 0:03:53]} 19. f5 {[%emt 0:00:04]} Nc6 {[%emt 0:01:29]} 20. g4 {[%emt 0:01:05]} Rff8 {[%emt 0:02:07]} 21. g5 {[%emt 0:01:00]} Bd8 {[%emt 0:01:23]} 22. Bd2 {[%emt 0:04:11]} Qd6 {[%emt 0:01:00]} 23. Ne1 {[%emt 0:00:55]} a5 {[%emt 0:06:30]} 24. Bg4 {[%emt 0:01:58]} Ra7 {[%emt 0:00:57]} 25. a4 {[%emt 0:05:37]} Nb4 {[%emt 0:03:38]} 26. Ra3 {[%emt 0:10:50]} Qc6 {[%emt 0:02:34]} 27. Rg3 {[%emt 0:06:29]} Nb8 {[%emt 0:01:38]} 28. b3 {[%emt 0:02:11]} Qxe4 {[%emt 0:04:32]} 29. Bf3 {[%emt 0:05:55]} Qb1 {[%emt 0:00:27]} 30. Bxb4 {[%emt 0:04:36]} axb4 {[%emt 0:00:33]} 31. Bd5+ {[%emt 0:00:06]} Kh8 {[%emt 0:00:22]} 32. Qxh7+ {[%emt 0:00:08]} 1-0

[Event "2nd Bieszczady Chess-ch B 2022"]
[Site "Bystre"]
[Date "2022.07.21"]
[Round "6.5"]
[White "Kotyla, Jan"]
[Black "Kusiak, Mateusz"]
[Result "0-1"]
[ECO "B35"]
[WhiteElo "1398"]
[BlackElo "1693"]
[Annotator "NA COMBH"]
[PlyCount "70"]
[EventDate "2022.07.17"]
[EventCountry "POL"]
[SourceTitle "playchess.com"]
[Source "ChessBase"]
[SourceQuality "1"]
[TimeControl "5400+30"]

1. e4 {[%emt 0:00:03]} c5 {[%emt 0:00:04]} 2. Nf3 {[%emt 0:00:05]} Nc6 {[%emt 0:00:04]} 3. d4 {[%emt 0:00:34]} cxd4 {[%emt 0:00:06]} 4. Nxd4 {[%emt 0:00:06]} g6 {[%emt 0:00:03]} 5. Nc3 {[%emt 0:00:08]} Bg7 {[%emt 0:00:04]} 6. Be3 {[%emt 0:00:05]} Nf6 {[%emt 0:00:04]} 7. Bc4 {[%emt 0:00:09]} O-O {[%emt 0:00:06]} 8. Bb3 {[%emt 0:00:10]} d6 {[%emt 0:00:46]} 9. f3 {[%emt 0:00:06]} Bd7 {[%emt 0:00:58]} 10. Qd2 {[%emt 0:00:09]} Re8 {[%emt 0:02:30]} 11. O-O-O {[%emt 0:00:42]} a5 {[%emt 0:05:19]} 12. a4 {[%emt 0:01:19]} Ne5 {[%emt 0:04:15]} 13. Kb1 {[%emt 0:00:53]} Qc7 {[%emt 0:00:59]} 14. Qe2 {[%emt 0:03:43]} Rec8 {[%emt 0:01:38]} 15. Ndb5 {[%emt 0:01:27]} Bxb5 {[%emt 0:00:24]} 16. Nxb5 {[%emt 0:00:15]} Qd8 {[%emt 0:00:08]} 17. Bd4 {[%emt 0:02:58]} Nfd7 {[%emt 0:12:37]} 18. f4 {[%emt 0:02:07]} Nc6 {[%emt 0:00:05]} 19. Bxg7 {[%emt 0:00:07]} Kxg7 {[%emt 0:00:04]} 20. Bc4 {[%emt 0:03:10]} Nb6 {[%emt 0:02:12]} 21. Bb3 {[%emt 0:03:09]} Nd7 {[%emt 0:00:07]} 22. g4 {[%emt 0:02:08]} Nc5 {[%emt 0:00:13]} 23. h4 {[%emt 0:02:45]} Nxb3 {[%emt 0:00:41]} 24. cxb3 {[%emt 0:00:07]} Qb6 {[%emt 0:03:48]} 25. Qf3 {[%emt 0:10:41]} Na7 {[%emt 0:06:20]} 26. Qh3 {[%emt 0:13:47]} Nxb5 {[%emt 0:00:32]} 27. axb5 {[%emt 0:00:09]} Qxb5 {[%emt 0:01:30]} 28. h5 {[%emt 0:00:18]} g5 {[%emt 0:16:24]} 29. Rd5 {[%emt 0:04:47]} Qe2 {[%emt 0:00:12]} 30. Rxg5+ {[%emt 0:01:08]} Kf8 {[%emt 0:00:13]} 31. Qh2 {[%emt 0:09:50]} Qxe4+ {[%emt 0:07:01]} 32. Ka1 {[%emt 0:00:07]} Rc2 {[%emt 0:01:45]} 33. Qg1 {[%emt 0:00:42]} a4 {[%emt 0:00:31]} 34. b4 {[%emt 0:00:40]} Qxb4 {[%emt 0:00:37]} 35. Qb1 {[%emt 0:00:18]} a3 {[%emt 0:00:09]} 0-1

[Event "2nd Bieszczady Chess-ch B 2022"]
[Site "Bystre"]
[Date "2022.07.21"]
[Round "6.6"]
[White "Giefert, Sara"]
[Black "Zajac, Karol"]
[Result "0-1"]
[ECO "A40"]
[WhiteElo "1692"]
[BlackElo "1579"]
[Annotator "NA COMBH"]
[PlyCount "118"]
[EventDate "2022.07.17"]
[EventCountry "POL"]
[SourceTitle "playchess.com"]
[Source "ChessBase"]
[SourceQuality "1"]
[TimeControl "5400+30"]

1. d4 {[%emt 0:00:03]} e6 {[%emt 0:00:15]} 2. e3 {[%emt 0:00:14]} Nf6 {[%emt 0:00:40]} 3. Bd3 {[%emt 0:00:07]} c5 {[%emt 0:00:44]} 4. c3 {[%emt 0:00:27]} d5 {[%emt 0:01:22]} 5. f4 {[%emt 0:00:36]} Bd6 {[%emt 0:01:57]} 6. Nf3 {[%emt 0:00:28]} b6 {[%emt 0:04:34]} 7. O-O {[%emt 0:01:24]} Bb7 {[%emt 0:00:37]} 8. Ne5 {[%emt 0:00:42]} Nbd7 {[%emt 0:06:08]} 9. Bd2 {[%emt 0:02:22]} c4 {[%emt 0:09:58]} 10. Bc2 {[%emt 0:00:29]} b5 {[%emt 0:00:31]} 11. Be1 {[%emt 0:00:44]} Be7 {[%emt 0:00:28]} 12. Nd2 {[%emt 0:02:38]} Ne4 {[%emt 0:03:59]} 13. a4 {[%emt 0:03:46]} a6 {[%emt 0:01:51]} 14. axb5 {[%emt 0:07:15]} axb5 {[%emt 0:00:15]} 15. Rxa8 {[%emt 0:00:16]} Bxa8 {[%emt 0:01:02]} 16. Kh1 {[%emt 0:03:44]} Nd6 {[%emt 0:02:23]} 17. g4 {[%emt 0:07:27]} Nf6 {[%emt 0:03:27]} 18. g5 {[%emt 0:01:53]} Nfe4 {[%emt 0:00:12]} 19. Nxe4 {[%emt 0:00:39]} dxe4 {[%emt 0:00:37]} 20. Qh5 {[%emt 0:02:35]} g6 {[%emt 0:02:39]} 21. Qe2 {[%emt 0:01:12]} Bd5 {[%emt 0:00:59]} 22. h4 {[%emt 0:01:41]} h6 {[%emt 0:07:27]} 23. Kg2 {[%emt 0:01:53]} hxg5 {[%emt 0:09:47]} 24. hxg5 {[%emt 0:02:39]} Bxg5 {[%emt 0:00:09]} 25. fxg5 {[%emt 0:01:41]} Qxg5+ {[%emt 0:00:09]} 26. Bg3 {[%emt 0:13:46]} Nf5 {[%emt 0:00:24]} 27. Rxf5 {[%emt 0:02:56]} gxf5 {[%emt 0:02:55]} 28. Qf2 {[%emt 0:07:02]} f6 {[%emt 0:07:07]} 29. Qf4 {[%emt 0:02:04]} Qxf4 {[%emt 0:00:52]} 30. Bxf4 {[%emt 0:00:39]} Rg8+ {[%emt 0:01:37]} 31. Kf2 {[%emt 0:00:15]} fxe5 {[%emt 0:00:07]} 32. Bxe5 {[%emt 0:00:11]} Ke7 {[%emt 0:00:49]} 33. Ke2 {[%emt 0:00:22]} Rg2+ {[%emt 0:01:46]} 34. Kd1 {[%emt 0:00:09]} Bc6 {[%emt 0:00:45]} 35. Kc1 Be8 {[%emt 0:00:28]} 36. b3 {[%emt 0:03:22]} Bh5 {[%emt 0:01:27]} 37. b4 {[%emt 0:02:07]} Be2 {[%emt 0:00:34]} 38. Bf4 {[%emt 0:00:16]} Bd3 {[%emt 0:00:42]} 39. Bd1 {[%emt 0:00:11]} Kf6 {[%emt 0:03:08]} 40. Bd6 {[%emt 0:00:23]} Ra2 {[%emt 0:00:41]} 41. Bf4 {[%emt 0:00:28]} Rg2 {[%emt 0:02:37]} 42. Bc7 {[%emt 0:00:40]} Be2 {[%emt 0:00:26]} 43. Bc2 {[%emt 0:00:10]} Kg5 {[%emt 0:00:20]} 44. Bd6 {[%emt 0:00:19]} Kg4 {[%emt 0:00:21]} 45. Be5 {[%emt 0:00:13]} Kf3 {[%emt 0:00:11]} 46. Bf4 {[%emt 0:00:08]} Rg4 {[%emt 0:00:50]} 47. Bh6 {[%emt 0:00:13]} Rh4 {[%emt 0:02:44]} 48. Bg5 {[%emt 0:00:05]} Rh3 {[%emt 0:00:05]} 49. Bf4 {[%emt 0:00:31]} Rh1+ {[%emt 0:00:44]} 50. Kd2 {[%emt 0:00:37]} Rg1 {[%emt 0:00:37]} 51. Bh6 {[%emt 0:00:17]} Kf2 {[%emt 0:03:30]} 52. Bf4 {[%emt 0:00:16]} Ra1 {[%emt 0:01:23]} 53. Bg5 {[%emt 0:00:32]} Ra2 {[%emt 0:02:13]} 54. Kc1 {[%emt 0:00:27]} Bd3 {[%emt 0:00:20]} 55. Bd1 {[%emt 0:00:16]} Kf1 {[%emt 0:03:24]} 56. Bf4 {[%emt 0:01:24]} Rf2 {[%emt 0:01:16]} 57. Bg3 {[%emt 0:02:07]} f4 {[%emt 0:00:48]} 58. Bxf4 {[%emt 0:00:23]} Rxf4 {[%emt 0:00:09]} 59. exf4 {[%emt 0:00:04]} e3 {[%emt 0:00:19]} 0-1

[Event "2nd Bieszczady Chess-ch B 2022"]
[Site "Bystre"]
[Date "2022.07.21"]
[Round "6.7"]
[White "Sternik, Piotr"]
[Black "Panczuk, Grzegorz"]
[Result "0-1"]
[ECO "C02"]
[WhiteElo "1434"]
[BlackElo "1684"]
[Annotator "NA COMBH"]
[PlyCount "80"]
[EventDate "2022.07.17"]
[EventCountry "POL"]
[SourceTitle "playchess.com"]
[Source "ChessBase"]
[SourceQuality "1"]
[TimeControl "5400+30"]

1. e4 {[%emt 0:00:03]} e6 {[%emt 0:00:11]} 2. d4 {[%emt 0:00:08]} d5 {[%emt 0:00:04]} 3. e5 {[%emt 0:00:04]} c5 {[%emt 0:00:04]} 4. c3 {[%emt 0:00:11]} Nc6 {[%emt 0:00:07]} 5. Bb5 {[%emt 0:01:33]} Bd7 {[%emt 0:01:07]} 6. Ne2 {[%emt 0:01:38]} Nxe5 {[%emt 0:07:09]} 7. dxe5 {[%emt 0:00:34]} Bxb5 {[%emt 0:00:52]} 8. O-O {[%emt 0:00:17]} Qc7 {[%emt 0:04:51]} 9. Bf4 {[%emt 0:01:28]} g6 {[%emt 0:04:44]} 10. Bg3 {[%emt 0:00:21]} Bg7 {[%emt 0:00:50]} 11. f4 {[%emt 0:00:06]} Ne7 {[%emt 0:00:16]} 12. a4 {[%emt 0:02:34]} Bd7 {[%emt 0:00:14]} 13. Bf2 {[%emt 0:03:26]} O-O {[%emt 0:03:07]} 14. Nd2 {[%emt 0:04:20]} b6 {[%emt 0:07:15]} 15. b4 {[%emt 0:01:20]} cxb4 {[%emt 0:05:50]} 16. cxb4 {[%emt 0:00:55]} f6 {[%emt 0:03:40]} 17. Rc1 {[%emt 0:00:59]} Qb8 {[%emt 0:00:54]} 18. Bh4 {[%emt 0:02:23]} Nf5 {[%emt 0:01:36]} 19. Bxf6 {[%emt 0:00:10]} Bxf6 {[%emt 0:00:45]} 20. exf6 {[%emt 0:00:20]} Ne3 {[%emt 0:00:08]} 21. Qb3 {[%emt 0:01:25]} Nxf1 {[%emt 0:02:21]} 22. Rxf1 {[%emt 0:00:08]} Rxf6 {[%emt 0:00:31]} 23. Nf3 {[%emt 0:00:22]} Qe8 {[%emt 0:00:56]} 24. b5 {[%emt 0:01:31]} a6 {[%emt 0:01:32]} 25. Ne5 {[%emt 0:01:27]} axb5 {[%emt 0:01:12]} 26. Nxd7 {[%emt 0:00:13]} Qxd7 {[%emt 0:00:08]} 27. axb5 {[%emt 0:00:05]} Ra5 {[%emt 0:00:51]} 28. Nd4 {[%emt 0:00:06]} Qd6 {[%emt 0:03:52]} 29. Qe3 {[%emt 0:02:50]} Ra3 {[%emt 0:04:20]} 30. Qd2 {[%emt 0:01:14]} e5 {[%emt 0:04:57]} 31. fxe5 {[%emt 0:00:12]} Rxf1+ {[%emt 0:00:08]} 32. Kxf1 {[%emt 0:00:02]} Qxe5 {[%emt 0:00:23]} 33. Nf3 {[%emt 0:02:17]} Qe4 {[%emt 0:02:26]} 34. Kf2 {[%emt 0:03:17]} d4 {[%emt 0:05:19]} 35. Qb2 {[%emt 0:03:42]} Qe3+ {[%emt 0:03:26]} 36. Kg3 {[%emt 0:00:07]} h5 {[%emt 0:01:32]} 37. h4 {[%emt 0:01:26]} Qe5+ {[%emt 0:02:19]} 38. Kf2 {[%emt 0:00:42]} Qc5 {[%emt 0:00:13]} 39. Kf1 {[%emt 0:03:30]} Qc4+ {[%emt 0:00:30]} 40. Kg1 {[%emt 0:00:10]} Qc3 {[%emt 0:00:17]} 0-1